fUSD/lending_fUSD_20260430
["ID","MTS","AMOUNT","RATE_DAILY","PERIOD"]
[421359955,1777495845000,-300.0,0.0003794,2]
[421359961,1777495845000,-300.0,0.0003794,2]
[421359960,1777495845000,-300.0,0.0003794,2]
[421359958,1777495845000,-300.0,0.0003794,2]
[421359962,1777495845000,-300.0,0.0003794,2]
[421359947,1777495845000,-419.85965851,0.0003794,2]
[421359948,1777495845000,-300.0,0.0003794,2]
[421359997,1777495845000,-300.0,0.0003794,2]
[421360005,1777495845000,-300.0,0.0003794,2]
[421360028,1777495845000,-300.0,0.0003794,2]
[421360031,1777495845000,-300.0,0.0003794,2]
[421360027,1777495845000,-300.0,0.0003794,2]
[421360032,1777495845000,-300.0,0.0003794,2]
[421360022,1777495845000,-300.0,0.0003794,2]
[421360034,1777495845000,-300.0,0.0003794,2]
[421360026,1777495845000,-300.0,0.0003794,2]
[421360037,1777495845000,-300.0,0.0003794,2]
[421360036,1777495845000,-300.0,0.0003794,2]
[421360047,1777495845000,-300.0,0.0003794,2]
[421360038,1777495845000,-300.0,0.0003794,2]
[421360043,1777495845000,-362.15877737,0.0003794,2]
[421360046,1777495845000,-300.0,0.0003794,2]
[421360039,1777495845000,-300.0,0.0003794,2]
[421360041,1777495845000,-300.0,0.0003794,2]
[421360040,1777495845000,-300.0,0.0003794,2]
[421360042,1777495845000,-491.01442266,0.0003794,2]
[421360045,1777495845000,-300.0,0.0003794,2]
[421360049,1777495845000,-300.0,0.0003794,2]
[421360048,1777495845000,-602.42963136,0.0003794,2]
[421360052,1777495845000,-525.95885708,0.0003794,2]
[421360051,1777495845000,-300.0,0.0003794,2]
[421360050,1777495845000,-300.0,0.0003794,2]
[421360053,1777495845000,-300.0,0.0003794,2]
[421360007,1777495845000,-300.0,0.0003794,2]
[421360024,1777495845000,-300.0,0.0003794,2]
[421360033,1777495845000,-300.0,0.0003794,2]
[421360044,1777495845000,-300.0,0.0003794,2]
[421360030,1777495845000,-300.0,0.0003794,2]
[421359999,1777495845000,-308.5418779,0.0003794,2]
[421360035,1777495845000,-300.0,0.0003794,2]
[421360000,1777495845000,-300.0,0.0003794,2]
[421359996,1777495845000,-342.75795842,0.0003794,2]
[421359998,1777495845000,-1143.28605913,0.0003794,2]
[421360008,1777495845000,-300.0,0.0003794,2]
[421360002,1777495845000,-300.0,0.0003794,2]
[421360001,1777495845000,-861.48587114,0.0003794,2]
[421360003,1777495845000,-300.0,0.0003794,2]
[421360004,1777495845000,-300.0,0.0003794,2]
[421360009,1777495845000,-462.29239414,0.0003794,2]
[421360012,1777495845000,-300.0,0.0003794,2]
[421360021,1777495845000,-308.79275606,0.0003794,2]
[421360006,1777495845000,-309.84039163,0.0003794,2]
[421360010,1777495845000,-300.0,0.0003794,2]
[421360025,1777495845000,-419.85965851,0.0003794,2]
[421360023,1777495845000,-300.0,0.0003794,2]
[421360015,1777495845000,-300.0,0.0003794,2]
[421360016,1777495845000,-300.0,0.0003794,2]
[421360017,1777495845000,-300.0,0.0003794,2]
[421360019,1777495845000,-300.0,0.0003794,2]
[421360029,1777495845000,-1090.98668708,0.0003794,2]
[421360018,1777495845000,-300.0,0.0003794,2]
[421360013,1777495845000,-450.3651763,0.0003794,2]
[421360020,1777495845000,-482.43942189,0.0003794,2]
[421360011,1777495845000,-433.17313298,0.0003794,2]
[421360014,1777495845000,-300.0,0.0003794,2]
[421360092,1777495846000,-300.0,0.0003794,2]
[421360094,1777495846000,-300.0,0.0003794,2]
[421360097,1777495846000,-300.0,0.0003794,2]
[421360096,1777495846000,-300.0,0.0003794,2]
[421360095,1777495846000,-300.0,0.0003794,2]
[421360098,1777495846000,-482.43942189,0.0003794,2]
[421360088,1777495846000,-300.0,0.0003794,2]
[421360089,1777495846000,-433.17313298,0.0003794,2]
[421360091,1777495846000,-450.3651763,0.0003794,2]
[421360090,1777495846000,-300.0,0.0003794,2]
[421360084,1777495846000,-309.84039163,0.0003794,2]
[421360087,1777495846000,-462.29239414,0.0003794,2]
[421360093,1777495846000,-300.0,0.0003794,2]
[421360099,1777495846000,-308.79275606,0.0003794,2]
[421360109,1777495846000,-300.0,0.0003794,2]
[421360111,1777495846000,-300.0,0.0003794,2]
[421360102,1777495846000,-300.0,0.0003794,2]
[421360100,1777495846000,-300.0,0.0003794,2]
[421360113,1777495846000,-300.0,0.0003794,2]
[421360114,1777495846000,-300.0,0.0003794,2]
[421360104,1777495846000,-300.0,0.0003794,2]
[421360103,1777495846000,-419.85965851,0.0003794,2]
[421360105,1777495846000,-300.0,0.0003794,2]
[421360107,1777495846000,-1090.98668708,0.0003794,2]
[421360108,1777495846000,-300.0,0.0003794,2]
[421360106,1777495846000,-300.0,0.0003794,2]
[421360116,1777495846000,-300.0,0.0003794,2]
[421360080,1777495846000,-300.0,0.0003794,2]
[421360101,1777495846000,-300.0,0.0003794,2]
[421360085,1777495846000,-300.0,0.0003794,2]
[421360055,1777495846000,-890.38635649,0.0003794,2]
[421360081,1777495846000,-300.0,0.0003794,2]
[421360126,1777495846000,-300.0,0.0003794,2]
[421360059,1777495846000,-300.0,0.0003794,2]
[421360060,1777495846000,-300.0,0.0003794,2]
[421360058,1777495846000,-723.61897705,0.0003794,2]
[421360056,1777495846000,-300.0,0.0003794,2]
[421360057,1777495846000,-302.03006712,0.0003794,2]
[421360054,1777495846000,-1063.30858973,0.0003794,2]
[421360062,1777495846000,-300.0,0.0003794,2]
[421360073,1777495846000,-300.0,0.0003794,2]
[421360072,1777495846000,-1790.27047416,0.0003794,2]
[421360074,1777495846000,-342.75795842,0.0003794,2]
[421360063,1777495846000,-300.0,0.0003794,2]
[421360061,1777495846000,-300.0,0.0003794,2]
[421360083,1777495846000,-300.0,0.0003794,2]
[421360065,1777495846000,-596.58990167,0.0003794,2]
[421360066,1777495846000,-300.0,0.0003794,2]
[421360064,1777495846000,-300.0,0.0003794,2]
[421360068,1777495846000,-331.83437187,0.0003794,2]
[421360069,1777495846000,-300.0,0.0003794,2]
[421360070,1777495846000,-839.32738085,0.0003794,2]
[421360071,1777495846000,-300.0,0.0003794,2]
[421360076,1777495846000,-1143.28605913,0.0003794,2]
[421360075,1777495846000,-300.0,0.0003794,2]
[421360086,1777495846000,-300.0,0.0003794,2]
[421360077,1777495846000,-308.5418779,0.0003794,2]
[421360078,1777495846000,-300.0,0.0003794,2]
[421360082,1777495846000,-300.0,0.0003794,2]
[421360079,1777495846000,-861.48587114,0.0003794,2]
[421360067,1777495846000,-300.0,0.0003794,2]
[421360119,1777495846000,-300.0,0.0003794,2]
[421360125,1777495846000,-300.0,0.0003794,2]
[421360122,1777495846000,-300.0,0.0003794,2]
[421360177,1777495846000,-300.0,0.0003794,2]
[421360168,1777495846000,-342.75795842,0.0003794,2]
[421360178,1777495846000,-300.0,0.0003794,2]
[421360179,1777495846000,-300.0,0.0003794,2]
[421360181,1777495846000,-309.84039163,0.0003794,2]
[421360166,1777495846000,-300.0,0.0003794,2]
[421360180,1777495846000,-300.0,0.0003794,2]
[421360174,1777495846000,-300.0,0.0003794,2]
[421360173,1777495846000,-308.5418779,0.0003794,2]
[421360172,1777495846000,-1143.28605913,0.0003794,2]
[421360170,1777495846000,-300.0,0.0003794,2]
[421360175,1777495846000,-861.48587114,0.0003794,2]
[421360183,1777495846000,-462.29239414,0.0003794,2]
[421360176,1777495846000,-300.0,0.0003794,2]
[421360193,1777495846000,-300.0,0.0003794,2]
[421360185,1777495846000,-433.17313298,0.0003794,2]
[421360184,1777495846000,-300.0,0.0003794,2]
[421360182,1777495846000,-300.0,0.0003794,2]
[421360194,1777495846000,-482.43942189,0.0003794,2]
[421360188,1777495846000,-300.0,0.0003794,2]
[421360186,1777495846000,-450.3651763,0.0003794,2]
[421360190,1777495846000,-300.0,0.0003794,2]
[421360191,1777495846000,-300.0,0.0003794,2]
[421360192,1777495846000,-300.0,0.0003794,2]
[421360189,1777495846000,-300.0,0.0003794,2]
[421360196,1777495846000,-300.0,0.0003794,2]
[421360198,1777495846000,-300.0,0.0003794,2]
[421360121,1777495846000,-300.0,0.0003794,2]
[421360187,1777495846000,-300.0,0.0003794,2]
[421360164,1777495846000,-300.0,0.0003794,2]
[421360197,1777495846000,-300.0,0.0003794,2]
[421360162,1777495846000,-1790.27047416,0.0003794,2]
[421360151,1777495846000,-300.0,0.0003794,2]
[421360118,1777495846000,-300.0,0.0003794,2]
[421360115,1777495846000,-300.0,0.0003794,2]
[421360117,1777495846000,-300.0,0.0003794,2]
[421360120,1777495846000,-300.0,0.0003794,2]
[421360123,1777495846000,-491.01442266,0.0003794,2]
[421360124,1777495846000,-300.0,0.0003794,2]
[421360128,1777495846000,-602.42963136,0.0003794,2]
[421360127,1777495846000,-300.0,0.0003794,2]
[421360138,1777495846000,-302.03006712,0.0003794,2]
[421360131,1777495846000,-300.0,0.0003794,2]
[421360139,1777495846000,-723.61897705,0.0003794,2]
[421360135,1777495846000,-890.38635649,0.0003794,2]
[421360132,1777495846000,-525.95885708,0.0003794,2]
[421360195,1777495846000,-308.79275606,0.0003794,2]
[421360133,1777495846000,-300.0,0.0003794,2]
[421360130,1777495846000,-300.0,0.0003794,2]
[421360156,1777495846000,-331.83437187,0.0003794,2]
[421360153,1777495846000,-300.0,0.0003794,2]
[421360154,1777495846000,-300.0,0.0003794,2]
[421360147,1777495846000,-300.0,0.0003794,2]
[421360149,1777495846000,-300.0,0.0003794,2]
[421360160,1777495846000,-839.32738085,0.0003794,2]
[421360145,1777495846000,-300.0,0.0003794,2]
[421360134,1777495846000,-1063.30858973,0.0003794,2]
[421360159,1777495846000,-300.0,0.0003794,2]
[421360129,1777495846000,-300.0,0.0003794,2]
[421360141,1777495846000,-300.0,0.0003794,2]
[421360143,1777495846000,-300.0,0.0003794,2]
[421360136,1777495846000,-300.0,0.0003794,2]
[421360227,1777495847000,-525.95885708,0.0003794,2]
[421360240,1777495847000,-300.0,0.0003794,2]
[421360241,1777495847000,-300.0,0.0003794,2]
[421360231,1777495847000,-585.63613109,0.0003794,2]
[421360233,1777495847000,-723.61897705,0.0003794,2]
[421360235,1777495847000,-300.0,0.0003794,2]
[421360234,1777495847000,-300.0,0.0003794,2]
[421360237,1777495847000,-300.0,0.0003794,2]
[421360236,1777495847000,-300.0,0.0003794,2]
[421360238,1777495847000,-300.0,0.0003794,2]
[421360239,1777495847000,-300.0,0.0003794,2]
[421360232,1777495847000,-302.03006712,0.0003794,2]
[421360254,1777495847000,-300.0,0.0003794,2]
[421360243,1777495847000,-300.0,0.0003794,2]
[421360252,1777495847000,-300.0,0.0003794,2]
[421360244,1777495847000,-839.32738085,0.0003794,2]
[421360253,1777495847000,-861.48587114,0.0003794,2]
[421360247,1777495847000,-300.0,0.0003794,2]
[421360255,1777495847000,-300.0,0.0003794,2]
[421360246,1777495847000,-1790.27047416,0.0003794,2]
[421360250,1777495847000,-1143.28605913,0.0003794,2]
[421360251,1777495847000,-308.5418779,0.0003794,2]
[421360245,1777495847000,-300.0,0.0003794,2]
[421360248,1777495847000,-342.75795842,0.0003794,2]
[421360228,1777495847000,-300.0,0.0003794,2]
[421360249,1777495847000,-300.0,0.0003794,2]
[421360242,1777495847000,-331.83437187,0.0003794,2]
[421360225,1777495847000,-300.0,0.0003794,2]
[421360216,1777495847000,-300.0,0.0003794,2]
[421360226,1777495847000,-300.0,0.0003794,2]
[421360257,1777495847000,-300.0,0.0003794,2]
[421360206,1777495847000,-300.0,0.0003794,2]
[421360199,1777495847000,-419.85965851,0.0003794,2]
[421360200,1777495847000,-300.0,0.0003794,2]
[421360201,1777495847000,-300.0,0.0003794,2]
[421360202,1777495847000,-300.0,0.0003794,2]
[421360205,1777495847000,-300.0,0.0003794,2]
[421360204,1777495847000,-300.0,0.0003794,2]
[421360208,1777495847000,-300.0,0.0003794,2]
[421360218,1777495847000,-491.01442266,0.0003794,2]
[421360207,1777495847000,-300.0,0.0003794,2]
[421360209,1777495847000,-300.0,0.0003794,2]
[421360224,1777495847000,-300.0,0.0003794,2]
[421360212,1777495847000,-300.0,0.0003794,2]
[421360213,1777495847000,-300.0,0.0003794,2]
[421360211,1777495847000,-300.0,0.0003794,2]
[421360215,1777495847000,-300.0,0.0003794,2]
[421360217,1777495847000,-300.0,0.0003794,2]
[421360210,1777495847000,-300.0,0.0003794,2]
[421360219,1777495847000,-300.0,0.0003794,2]
[421360221,1777495847000,-300.0,0.0003794,2]
[421360223,1777495847000,-602.42963136,0.0003794,2]
[421360220,1777495847000,-300.0,0.0003794,2]
[421360229,1777495847000,-1063.30858973,0.0003794,2]
[421360222,1777495847000,-300.0,0.0003794,2]
[421360230,1777495847000,-890.38635649,0.0003794,2]
[421360214,1777495847000,-300.0,0.0003794,2]
[421360256,1777495847000,-300.0,0.0003794,2]
[421360203,1777495847000,-1090.98668708,0.0003794,2]
[421360258,1777495847000,-309.84039163,0.0003794,2]
[421360289,1777495847000,-300.0,0.0003794,2]
[421360284,1777495847000,-300.0,0.0003794,2]
[421360293,1777495847000,-300.0,0.0003794,2]
[421360297,1777495847000,-300.0,0.0003794,2]
[421360299,1777495847000,-300.0,0.0003794,2]
[421360295,1777495847000,-300.0,0.0003794,2]
[421360298,1777495847000,-300.0,0.0003794,2]
[421360294,1777495847000,-300.0,0.0003794,2]
[421360296,1777495847000,-491.01442266,0.0003794,2]
[421360301,1777495847000,-602.42963136,0.0003794,2]
[421360302,1777495847000,-300.0,0.0003794,2]
[421360303,1777495847000,-300.0,0.0003794,2]
[421360305,1777495847000,-525.95885708,0.0003794,2]
[421360308,1777495847000,-890.38635649,0.0003794,2]
[421360304,1777495847000,-300.0,0.0003794,2]
[421360309,1777495847000,-302.03006712,0.0003794,2]
[421360310,1777495847000,-723.61897705,0.0003794,2]
[421360311,1777495847000,-300.0,0.0003794,2]
[421360307,1777495847000,-1063.30858973,0.0003794,2]
[421360306,1777495847000,-300.0,0.0003794,2]
[421360312,1777495847000,-300.0,0.0003794,2]
[421360313,1777495847000,-300.0,0.0003794,2]
[421360314,1777495847000,-300.0,0.0003794,2]
[421360315,1777495847000,-300.0,0.0003794,2]
[421360316,1777495847000,-300.0,0.0003794,2]
[421360317,1777495847000,-300.0,0.0003794,2]
[421360267,1777495847000,-300.0,0.0003794,2]
[421360290,1777495847000,-300.0,0.0003794,2]
[421360288,1777495847000,-300.0,0.0003794,2]
[421360300,1777495847000,-300.0,0.0003794,2]
[421360280,1777495847000,-300.0,0.0003794,2]
[421360259,1777495847000,-300.0,0.0003794,2]
[421360286,1777495847000,-300.0,0.0003794,2]
[421360268,1777495847000,-300.0,0.0003794,2]
[421360264,1777495847000,-300.0,0.0003794,2]
[421360265,1777495847000,-450.3651763,0.0003794,2]
[421360261,1777495847000,-462.29239414,0.0003794,2]
[421360262,1777495847000,-300.0,0.0003794,2]
[421360266,1777495847000,-300.0,0.0003794,2]
[421360263,1777495847000,-433.17313298,0.0003794,2]
[421360269,1777495847000,-300.0,0.0003794,2]
[421360270,1777495847000,-300.0,0.0003794,2]
[421360278,1777495847000,-300.0,0.0003794,2]
[421360271,1777495847000,-300.0,0.0003794,2]
[421360275,1777495847000,-300.0,0.0003794,2]
[421360260,1777495847000,-300.0,0.0003794,2]
[421360274,1777495847000,-300.0,0.0003794,2]
[421360287,1777495847000,-300.0,0.0003794,2]
[421360273,1777495847000,-308.79275606,0.0003794,2]
[421360283,1777495847000,-300.0,0.0003794,2]
[421360282,1777495847000,-300.0,0.0003794,2]
[421360292,1777495847000,-300.0,0.0003794,2]
[421360291,1777495847000,-300.0,0.0003794,2]
[421360285,1777495847000,-300.0,0.0003794,2]
[421360276,1777495847000,-300.0,0.0003794,2]
[421360279,1777495847000,-300.0,0.0003794,2]
[421360272,1777495847000,-482.43942189,0.0003794,2]
[421360277,1777495847000,-419.85965851,0.0003794,2]
[421360281,1777495847000,-1090.98668708,0.0003794,2]
[421360364,1777495848000,-244.79252,0.0003794,7]
[421360358,1777495848000,-545.645679,0.0003794,7]
[421360357,1777495848000,-545.645682,0.0003794,7]
[421360354,1777495848000,-429.812546,0.0003794,7]
[421360356,1777495848000,-545.645682,0.0003794,7]
[421360346,1777495848000,-300.0,0.0003794,2]
[421360355,1777495848000,-545.645682,0.0003794,7]
[421360353,1777495848000,-429.812552,0.0003794,7]
[421360345,1777495848000,-300.0,0.0003794,2]
[421360348,1777495848000,-300.0,0.0003794,2]
[421360362,1777495848000,-350.336809,0.0003794,7]
[421360365,1777495848000,-151.0,0.00037944,7]
[421360363,1777495848000,-244.79252,0.0003794,7]
[421360371,1777495848000,-10000.0,0.00038,7]
[421360360,1777495848000,-350.336802,0.0003794,7]
[421360359,1777495848000,-350.336802,0.0003794,7]
[421360366,1777495848000,-243.709464,0.00037944,7]
[421360367,1777495848000,-243.709464,0.00037944,7]
[421360368,1777495848000,-243.709464,0.00037944,7]
[421360372,1777495848000,-160.0,0.00038,120]
[421360375,1777495848000,-570.49,0.00038053,2]
[421360369,1777495848000,-243.709457,0.00037944,7]
[421360373,1777495848000,-173.17,0.00038014,120]
[421360376,1777495848000,-151.0,0.00038056,2]
[421360374,1777495848000,-478.17,0.00038053,2]
[421360347,1777495848000,-300.0,0.0003794,2]
[421360361,1777495848000,-350.336802,0.0003794,7]
[421360351,1777495848000,-429.812552,0.0003794,7]
[421360324,1777495848000,-300.0,0.0003794,2]
[421360344,1777495848000,-300.0,0.0003794,2]
[421360370,1777495848000,-160.84614472,0.00037985,2]
[421360325,1777495848000,-342.75795842,0.0003794,2]
[421360318,1777495848000,-300.0,0.0003794,2]
[421360326,1777495848000,-300.0,0.0003794,2]
[421360328,1777495848000,-308.5418779,0.0003794,2]
[421360327,1777495848000,-1143.28605913,0.0003794,2]
[421360322,1777495848000,-300.0,0.0003794,2]
[421360319,1777495848000,-331.83437187,0.0003794,2]
[421360320,1777495848000,-300.0,0.0003794,2]
[421360323,1777495848000,-1790.27047416,0.0003794,2]
[421360321,1777495848000,-839.32738085,0.0003794,2]
[421360331,1777495848000,-300.0,0.0003794,2]
[421360340,1777495848000,-433.17313298,0.0003794,2]
[421360352,1777495848000,-429.812552,0.0003794,7]
[421360332,1777495848000,-300.0,0.0003794,2]
[421360337,1777495848000,-300.0,0.0003794,2]
[421360330,1777495848000,-861.48587114,0.0003794,2]
[421360338,1777495848000,-462.29239414,0.0003794,2]
[421360333,1777495848000,-300.0,0.0003794,2]
[421360335,1777495848000,-309.84039163,0.0003794,2]
[421360329,1777495848000,-300.0,0.0003794,2]
[421360334,1777495848000,-300.0,0.0003794,2]
[421360339,1777495848000,-300.0,0.0003794,2]
[421360341,1777495848000,-300.0,0.0003794,2]
[421360343,1777495848000,-300.0,0.0003794,2]
[421360342,1777495848000,-450.3651763,0.0003794,2]
[421360349,1777495848000,-482.43942189,0.0003794,2]
[421360350,1777495848000,-308.79275606,0.0003794,2]
[421360336,1777495848000,-300.0,0.0003794,2]
[421360377,1777495848000,-11408.3985,0.0003806,2]
[421360381,1777495848000,-392.84,0.00038062,2]
[421360379,1777495848000,-2079.7845,0.0003806,2]
[421360412,1777495848000,-150.0,0.00038603,7]
[421360414,1777495848000,-777.0,0.0003863,120]
[421360415,1777495848000,-236.46167873,0.00038638,120]
[421360417,1777495848000,-150.0,0.00038647,2]
[421360418,1777495848000,-173.0,0.00038647,2]
[421360419,1777495848000,-897.5915328,0.0003868,120]
[421360420,1777495848000,-2234.9834,0.00038695,2]
[421360416,1777495848000,-269.0,0.00038647,2]
[421360422,1777495848000,-500.0,0.000387,120]
[421360421,1777495848000,-500.0,0.000387,120]
[421360424,1777495848000,-500.0,0.000387,120]
[421360423,1777495848000,-500.0,0.000387,120]
[421360425,1777495848000,-500.0,0.000387,120]
[421360426,1777495848000,-500.0,0.000387,120]
[421360436,1777495848000,-500.0,0.000387,120]
[421360435,1777495848000,-500.0,0.000387,120]
[421360438,1777495848000,-500.0,0.000387,120]
[421360437,1777495848000,-500.0,0.000387,120]
[421360439,1777495848000,-500.0,0.000387,120]
[421360427,1777495848000,-500.0,0.000387,120]
[421360430,1777495848000,-500.0,0.000387,120]
[421360434,1777495848000,-500.0,0.000387,120]
[421360389,1777495848000,-151.0,0.00038082,7]
[421360432,1777495848000,-500.0,0.000387,120]
[421360429,1777495848000,-500.0,0.000387,120]
[421360428,1777495848000,-500.0,0.000387,120]
[421360431,1777495848000,-500.0,0.000387,120]
[421360408,1777495848000,-82176.57784237,0.000385,2]
[421360410,1777495848000,-4500.0,0.000386,7]
[421360433,1777495848000,-500.0,0.000387,120]
[421360405,1777495848000,-189.80777702,0.000385,120]
[421360409,1777495848000,-2079.7845,0.00038536,2]
[421360390,1777495848000,-297.4469958,0.000381,33]
[421360386,1777495848000,-300.0,0.0003807,2]
[421360382,1777495848000,-183.42,0.00038062,2]
[421360380,1777495848000,-392.42,0.00038062,2]
[421360387,1777495848000,-404.72,0.00038079,2]
[421360388,1777495848000,-190.98,0.00038079,2]
[421360385,1777495848000,-478.17,0.00038062,2]
[421360384,1777495848000,-588.18,0.00038062,2]
[421360383,1777495848000,-585.62,0.00038062,2]
[421360392,1777495848000,-11408.3985,0.00038196,2]
[421360402,1777495848000,-197.62691828,0.000385,120]
[421360391,1777495848000,-151.0,0.00038125,30]
[421360394,1777495848000,-11408.3985,0.00038332,2]
[421360378,1777495848000,-2234.9834,0.0003806,2]
[421360401,1777495848000,-11408.3985,0.00038468,2]
[421360396,1777495848000,-263.41,0.00038356,30]
[421360411,1777495848000,-150.0,0.00038603,120]
[421360413,1777495848000,-11408.3985,0.00038604,2]
[421360404,1777495848000,-152.16569212,0.000385,120]
[421360403,1777495848000,-189.80777703,0.000385,120]
[421360407,1777495848000,-1875.794,0.000385,30]
[421360400,1777495848000,-1000.0,0.00038421,5]
[421360399,1777495848000,-2528.50622702,0.00038401,2]
[421360398,1777495848000,-2234.9834,0.00038378,2]
[421360397,1777495848000,-625.43,0.00038356,120]
[421360406,1777495848000,-151.0,0.000385,120]
[421360395,1777495848000,-454.83913199,0.00038356,30]
[421360393,1777495848000,-2079.7845,0.00038298,2]
[421360477,1777495849000,-397.04157722,0.00039,2]
[421360470,1777495849000,-2800.0,0.000389,14]
[421360468,1777495849000,-392.73,0.00038884,7]
[421360469,1777495849000,-506.0,0.00038884,14]
[421360471,1777495849000,-392.83,0.00038901,7]
[421360474,1777495849000,-1500.0,0.00038968,5]
[421360473,1777495849000,-286.0,0.0003891,30]
[421360475,1777495849000,-50000.0,0.00039,36]
[421360472,1777495849000,-209.0,0.0003891,30]
[421360467,1777495849000,-172.0,0.00038881,2]
[421360476,1777495849000,-10000.0,0.00039,7]
[421360483,1777495849000,-254.49,0.00039,30]
[421360485,1777495849000,-2234.9834,0.00039012,2]
[421360486,1777495849000,-2079.7845,0.00039012,2]
[421360481,1777495849000,-1259.60911015,0.00039,120]
[421360482,1777495849000,-7175.881945,0.00039,60]
[421360488,1777495849000,-1236.5434,0.00039041,2]
[421360480,1777495849000,-31184.43185792,0.00039,2]
[421360484,1777495849000,-11408.3985,0.00039012,2]
[421360479,1777495849000,-623.70137077,0.00039,2]
[421360491,1777495849000,-152.16569212,0.00039048,120]
[421360465,1777495849000,-157.30420751,0.00038878,7]
[421360478,1777495849000,-200.17502734,0.00039,2]
[421360466,1777495849000,-1712.26611188,0.0003888,60]
[421360448,1777495849000,-200.0,0.00038774,120]
[421360460,1777495849000,-85395.06,0.000388,7]
[421360489,1777495849000,-197.62691828,0.00039048,120]
[421360441,1777495849000,-163.27782413,0.000387,7]
[421360440,1777495849000,-500.0,0.000387,120]
[421360451,1777495849000,-189.80777703,0.00038774,120]
[421360442,1777495849000,-155.87585118,0.000387,2]
[421360443,1777495849000,-295.0,0.00038728,2]
[421360449,1777495849000,-307.0,0.00038774,120]
[421360444,1777495849000,-150.0,0.00038728,2]
[421360447,1777495849000,-152.0,0.00038772,4]
[421360445,1777495849000,-277.0,0.00038728,2]
[421360450,1777495849000,-197.62691828,0.00038774,120]
[421360446,1777495849000,-11408.3985,0.0003874,2]
[421360453,1777495849000,-2079.7845,0.00038774,2]
[421360454,1777495849000,-150.0,0.00038778,2]
[421360452,1777495849000,-152.16569212,0.00038774,120]
[421360463,1777495849000,-492.79,0.00038875,7]
[421360455,1777495849000,-150.0,0.00038778,2]
[421360456,1777495849000,-150.0,0.00038778,2]
[421360462,1777495849000,-2107.51678935,0.00038834,2]
[421360458,1777495849000,-150.0,0.00038778,2]
[421360461,1777495849000,-285.0,0.000388,7]
[421360457,1777495849000,-150.0,0.00038778,2]
[421360459,1777495849000,-242.0,0.00038778,2]
[421360464,1777495849000,-11408.3985,0.00038876,2]
[421360499,1777495849000,-189.80777703,0.00039322,120]
[421360487,1777495849000,-2000.0,0.00039041,2]
[421360494,1777495849000,-11408.3985,0.00039148,2]
[421360522,1777495849000,-997.85,0.00039621,120]
[421360521,1777495849000,-152.16569212,0.00039596,120]
[421360520,1777495849000,-189.80777703,0.00039596,120]
[421360525,1777495849000,-11408.3985,0.00039692,2]
[421360524,1777495849000,-500.0,0.00039686,60]
[421360526,1777495849000,-568.41,0.00039697,7]
[421360527,1777495849000,-157.30420751,0.00039699,7]
[421360528,1777495849000,-2182.1005,0.000397,60]
[421360532,1777495849000,-545.80695839,0.00039726,10]
[421360530,1777495849000,-997.85,0.00039721,120]
[421360529,1777495849000,-500.0,0.0003972,120]
[421360534,1777495849000,-10018.31293702,0.00039747,2]
[421360533,1777495849000,-576811.8548,0.00039734,30]
[421360535,1777495849000,-150.0,0.0003975,120]
[421360538,1777495849000,-997.85,0.00039821,120]